[Event "*** Titled Tuesday Blitz"]
[Site "Chess.com"]
[Date "2020.10.27"]
[Round "9"]
[White "GMBenjaminBok"]
[Black "Onischuk_V"]
[Result "0-1"]
[WhiteElo "2934"]
[BlackElo "2827"]
[TimeControl "180+1"]
[EndTime "11:45:06 PDT"]
[Termination "Onischuk_V won by resignation"]

1. d4 {[%clk 0:03:00.9]} 1... d6 {[%clk 0:02:59.7]} 2. Nf3 {[%clk 0:03:00.7]}
2... g6 {[%clk 0:02:59.8]} 3. e4 {[%clk 0:02:53.3]} 3... Bg7 {[%clk 0:03:00]} 4.
Be3 {[%clk 0:02:52.8]} 4... Nf6 {[%clk 0:02:59.8]} 5. Nc3 {[%clk 0:02:52.5]}
5... O-O {[%clk 0:02:56.4]} 6. h3 {[%clk 0:02:45.5]} 6... d5 {[%clk 0:02:55.5]}
7. e5 {[%clk 0:02:44.7]} 7... Ne4 {[%clk 0:02:55.6]} 8. Nxe4 {[%clk 0:02:41.8]}
8... dxe4 {[%clk 0:02:55.7]} 9. Ng5 {[%clk 0:02:42.4]} 9... c5 {[%clk 0:02:55]}
10. c3 {[%clk 0:02:42.8]} 10... cxd4 {[%clk 0:02:53.8]} 11. cxd4 {[%clk
0:02:43]} 11... Qa5+ {[%clk 0:02:52.7]} 12. Qd2 {[%clk 0:02:42]} 12... Qxd2+
{[%clk 0:02:52.8]} 13. Kxd2 {[%clk 0:02:42.6]} 13... Nc6 {[%clk 0:02:53]} 14.
Bc4 {[%clk 0:02:39.5]} 14... h6 {[%clk 0:02:29.2]} 15. Nxe4 {[%clk 0:02:38.4]}
15... Rd8 {[%clk 0:02:29.2]} 16. Kc3 {[%clk 0:02:12.8]} 16... Bf5 {[%clk
0:02:28]} 17. Ng3 {[%clk 0:02:09.9]} 17... Rac8 {[%clk 0:02:26.1]} 18. Nxf5
{[%clk 0:02:10.3]} 18... gxf5 {[%clk 0:02:26.1]} 19. a4 {[%clk 0:01:33.5]} 19...
f4 {[%clk 0:02:22.1]} 20. Bxf4 {[%clk 0:01:33.3]} 20... Nxd4 {[%clk 0:02:15.5]}
21. Bh2 {[%clk 0:00:41]} 21... b5 {[%clk 0:01:22.1]} 22. axb5 {[%clk 0:00:39.6]}
22... Nxb5+ {[%clk 0:01:22.3]} 23. Kb4 {[%clk 0:00:37.7]} 23... Nd4 {[%clk
0:01:20]} 24. Ra4 {[%clk 0:00:19.7]} 24... e6 {[%clk 0:01:18.6]} 25. Kc3 {[%clk
0:00:15.9]} 25... Nc6 {[%clk 0:01:05.2]} 26. f4 {[%clk 0:00:13]} 26... Bf8
{[%clk 0:01:04]} 27. Rc1 {[%clk 0:00:08.1]} 27... a5 {[%clk 0:01:01.1]} 28. Bg1
{[%clk 0:00:07.7]} 28... Bb4+ {[%clk 0:01:00.7]} 29. Kb3 {[%clk 0:00:07.1]}
29... Nd4+ {[%clk 0:00:59]} 30. Ka2 {[%clk 0:00:06.4]} 30... Ne2 {[%clk
0:00:59.1]} 31. Bxe2 {[%clk 0:00:05.5]} 31... Rxc1 {[%clk 0:00:58.4]} 32. Bb6
{[%clk 0:00:05.5]} 32... Rd2 {[%clk 0:00:57.8]} 33. Bf3 {[%clk 0:00:05.9]} 33...
Rcc2 {[%clk 0:00:56.9]} 34. Kb3 {[%clk 0:00:04.4]} 34... Rxb2+ {[%clk 0:00:56]}
35. Kc4 {[%clk 0:00:05.1]} 35... Rdc2+ {[%clk 0:00:52.9]} 36. Kd3 {[%clk
0:00:04.6]} 36... Rc3+ {[%clk 0:00:51.4]} 37. Kd4 {[%clk 0:00:04.4]} 37... Rd2+
{[%clk 0:00:50.7]} 38. Ke4 {[%clk 0:00:05]} 38... Rc4+ {[%clk 0:00:48.3]} 39.
Ke3 {[%clk 0:00:05]} 39... Rb2 {[%clk 0:00:48.6]} 40. Bxa5 {[%clk 0:00:04.4]}
40... Bc5+ {[%clk 0:00:48.3]} 41. Kd3 {[%clk 0:00:04.4]} 41... Rxa4 {[%clk
0:00:48.9]} 0-1

[Event "*** Titled Tuesday Blitz"]
[Site "Chess.com"]
[Date "2020.10.27"]
[Round "9"]
[White "Zmof"]
[Black "Caterpiller35"]
[Result "1-0"]
[WhiteElo "2227"]
[BlackElo "2457"]
[TimeControl "180+1"]
[EndTime "11:45:10 PDT"]
[Termination "Zmof won on time"]

1. e4 {[%clk 0:03:00.9]} 1... c5 {[%clk 0:02:59.7]} 2. Nf3 {[%clk 0:02:57.5]}
2... Nc6 {[%clk 0:02:56.5]} 3. d4 {[%clk 0:02:54.3]} 3... cxd4 {[%clk
0:02:57.4]} 4. Nxd4 {[%clk 0:02:53.8]} 4... e5 {[%clk 0:02:58]} 5. Nb5 {[%clk
0:02:53.4]} 5... d6 {[%clk 0:02:58]} 6. N1c3 {[%clk 0:02:52]} 6... a6 {[%clk
0:02:57.9]} 7. Na3 {[%clk 0:02:51.2]} 7... b5 {[%clk 0:02:58.8]} 8. Nd5 {[%clk
0:02:50.8]} 8... Nge7 {[%clk 0:02:59.5]} 9. c3 {[%clk 0:02:45.3]} 9... Nxd5
{[%clk 0:02:59]} 10. Qxd5 {[%clk 0:02:44.3]} 10... Qc7 {[%clk 0:02:54.8]} 11.
Nc2 {[%clk 0:02:31.5]} 11... Be6 {[%clk 0:02:54.4]} 12. Qd3 {[%clk 0:02:31.2]}
12... Rd8 {[%clk 0:02:51.3]} 13. Ne3 {[%clk 0:02:30.6]} 13... Be7 {[%clk
0:02:49.5]} 14. Be2 {[%clk 0:02:29.3]} 14... O-O {[%clk 0:02:49.2]} 15. O-O
{[%clk 0:02:29.8]} 15... Qb7 {[%clk 0:02:49.4]} 16. a4 {[%clk 0:02:23.2]} 16...
Rb8 {[%clk 0:02:37.4]} 17. axb5 {[%clk 0:02:19.3]} 17... axb5 {[%clk 0:02:38.3]}
18. b4 {[%clk 0:02:19.9]} 18... Rfd8 {[%clk 0:02:30.6]} 19. Bb2 {[%clk
0:02:15.5]} 19... Bg5 {[%clk 0:02:28.6]} 20. Rfd1 {[%clk 0:02:08.8]} 20... Bxe3
{[%clk 0:02:24]} 21. Qxe3 {[%clk 0:02:09.4]} 21... d5 {[%clk 0:02:19.8]} 22.
exd5 {[%clk 0:02:06.1]} 22... Bxd5 {[%clk 0:02:19]} 23. Bf3 {[%clk 0:02:00.6]}
23... Bxf3 {[%clk 0:02:13.1]} 24. Qxf3 {[%clk 0:02:01.1]} 24... Qc7 {[%clk
0:01:58]} 25. g3 {[%clk 0:01:47.2]} 25... Rxd1+ {[%clk 0:01:27.6]} 26. Rxd1
{[%clk 0:01:45.9]} 26... Rd8 {[%clk 0:01:28.1]} 27. Rd5 {[%clk 0:01:37.9]} 27...
Rxd5 {[%clk 0:00:58.7]} 28. Qxd5 {[%clk 0:01:37.4]} 28... Qb6 {[%clk 0:00:49]}
29. c4 {[%clk 0:01:28.2]} 29... bxc4 {[%clk 0:00:48.6]} 30. Qxc4 {[%clk
0:01:26.9]} 30... h5 {[%clk 0:00:41]} 31. b5 {[%clk 0:01:25]} 31... Na7 {[%clk
0:00:24.9]} 32. Bxe5 {[%clk 0:01:19.8]} 32... Nxb5 {[%clk 0:00:19.1]} 33. Qd5
{[%clk 0:01:01.4]} 33... Qa5 {[%clk 0:00:04.4]} 34. Kg2 {[%clk 0:00:58.1]} 34...
Qb4 {[%clk 0:00:03.6]} 35. Bf4 {[%clk 0:00:49.8]} 35... h4 {[%clk 0:00:02.1]}
36. Qd8+ {[%clk 0:00:43.5]} 1-0

[Event "*** Titled Tuesday Blitz"]
[Site "Chess.com"]
[Date "2020.10.27"]
[Round "9"]
[White "Samantha_Ross"]
[Black "beto-betun"]
[Result "1-0"]
[WhiteElo "2302"]
[BlackElo "2195"]
[TimeControl "180+1"]
[EndTime "11:45:15 PDT"]
[Termination "Samantha_Ross won on time"]

1. Nf3 {[%clk 0:02:59.7]} 1... Nf6 {[%clk 0:02:36.3]} 2. g3 {[%clk 0:03:00]}
2... g6 {[%clk 0:02:36.1]} 3. Bg2 {[%clk 0:03:00.9]} 3... Bg7 {[%clk 0:02:36.4]}
4. O-O {[%clk 0:03:00.6]} 4... O-O {[%clk 0:02:36.8]} 5. c4 {[%clk 0:03:01]}
5... d6 {[%clk 0:02:37]} 6. Nc3 {[%clk 0:03:01.8]} 6... c6 {[%clk 0:02:37.4]} 7.
d4 {[%clk 0:02:57.1]} 7... Nbd7 {[%clk 0:02:29.8]} 8. b3 {[%clk 0:02:56.7]} 8...
Re8 {[%clk 0:02:20.2]} 9. Bb2 {[%clk 0:02:54.7]} 9... e5 {[%clk 0:02:19.6]} 10.
dxe5 {[%clk 0:02:55.6]} 10... dxe5 {[%clk 0:02:17.2]} 11. Qc2 {[%clk 0:02:53.3]}
11... Qe7 {[%clk 0:02:16.6]} 12. Nd2 {[%clk 0:02:49]} 12... a5 {[%clk
0:02:11.7]} 13. a3 {[%clk 0:02:45.4]} 13... Nf8 {[%clk 0:02:07.6]} 14. Rfd1
{[%clk 0:02:42.6]} 14... Ne6 {[%clk 0:02:07]} 15. e3 {[%clk 0:02:41.5]} 15... h5
{[%clk 0:01:42.1]} 16. Nce4 {[%clk 0:02:41.6]} 16... Nxe4 {[%clk 0:01:41.6]} 17.
Nxe4 {[%clk 0:02:42.5]} 17... Nc5 {[%clk 0:01:29.1]} 18. h4 {[%clk 0:02:31.5]}
18... Nxe4 {[%clk 0:01:25.8]} 19. Bxe4 {[%clk 0:02:32.4]} 19... Be6 {[%clk
0:01:25.9]} 20. c5 {[%clk 0:02:26.2]} 20... Red8 {[%clk 0:01:24.8]} 21. b4
{[%clk 0:02:24.2]} 21... axb4 {[%clk 0:01:18.9]} 22. axb4 {[%clk 0:02:25.1]}
22... Rxa1 {[%clk 0:01:17.8]} 23. Rxa1 {[%clk 0:02:25.4]} 23... Qd7 {[%clk
0:01:13.2]} 24. Bc3 {[%clk 0:02:22.1]} 24... Bc4 {[%clk 0:01:03.5]} 25. Bf3
{[%clk 0:02:16.2]} 25... Bb5 {[%clk 0:00:58.6]} 26. Rd1 {[%clk 0:02:14.1]} 26...
Qe7 {[%clk 0:00:56.5]} 27. Rxd8+ {[%clk 0:02:11]} 27... Qxd8 {[%clk 0:00:57.4]}
28. Be4 {[%clk 0:02:05.5]} 28... Qd7 {[%clk 0:00:54.5]} 29. Qb2 {[%clk
0:02:04.4]} 29... Qe6 {[%clk 0:00:52.4]} 30. Kh2 {[%clk 0:02:03.3]} 30... Kf8
{[%clk 0:00:50.2]} 31. Qd2 {[%clk 0:02:00.6]} 31... Ke7 {[%clk 0:00:49.4]} 32.
Bg2 {[%clk 0:01:56.5]} 32... Qd7 {[%clk 0:00:47.8]} 33. Qb2 {[%clk 0:01:56.7]}
33... Qe6 {[%clk 0:00:47.4]} 34. f4 {[%clk 0:01:51]} 34... f6 {[%clk 0:00:45.1]}
35. Bh3 {[%clk 0:01:41.6]} 35... Qd5 {[%clk 0:00:35.6]} 36. Bg2 {[%clk
0:01:25.8]} 36... Qe6 {[%clk 0:00:34.5]} 37. Qa1 {[%clk 0:01:23]} 37... Ba6
{[%clk 0:00:27.2]} 38. Qa5 {[%clk 0:01:22.2]} 38... Qd7 {[%clk 0:00:25.9]} 39.
Bh3 {[%clk 0:01:18.7]} 39... Qd8 {[%clk 0:00:21.7]} 40. fxe5 {[%clk 0:01:04.2]}
1-0

[Event "*** Titled Tuesday Blitz"]
[Site "Chess.com"]
[Date "2020.10.27"]
[Round "9"]
[White "MattyDPerrine"]
[Black "albano87"]
[Result "1-0"]
[WhiteElo "2490"]
[BlackElo "2317"]
[TimeControl "180+1"]
[EndTime "11:45:17 PDT"]
[Termination "MattyDPerrine won by resignation"]

1. e4 {[%clk 0:03:00.9]} 1... c5 {[%clk 0:02:58.6]} 2. Nf3 {[%clk 0:03:01]} 2...
Nc6 {[%clk 0:02:58.2]} 3. Bb5 {[%clk 0:03:00.2]} 3... d6 {[%clk 0:02:54.7]} 4.
O-O {[%clk 0:02:55.9]} 4... Bd7 {[%clk 0:02:54.7]} 5. Re1 {[%clk 0:02:55.1]}
5... Nf6 {[%clk 0:02:54.7]} 6. c3 {[%clk 0:02:54.2]} 6... a6 {[%clk 0:02:53.8]}
7. Bf1 {[%clk 0:02:54.7]} 7... Bg4 {[%clk 0:02:53.7]} 8. h3 {[%clk 0:02:52.9]}
8... Bxf3 {[%clk 0:02:53.3]} 9. Qxf3 {[%clk 0:02:53.8]} 9... e5 {[%clk
0:02:52.6]} 10. a4 {[%clk 0:02:51.9]} 10... Be7 {[%clk 0:02:50.3]} 11. Na3
{[%clk 0:02:46.8]} 11... O-O {[%clk 0:02:48.3]} 12. Nc4 {[%clk 0:02:45.9]} 12...
b5 {[%clk 0:02:41]} 13. axb5 {[%clk 0:02:45.9]} 13... axb5 {[%clk 0:02:41.9]}
14. Rxa8 {[%clk 0:02:46.7]} 14... Qxa8 {[%clk 0:02:41.9]} 15. Na3 {[%clk
0:02:47.6]} 15... b4 {[%clk 0:02:39.7]} 16. Nc4 {[%clk 0:02:44.8]} 16... Nd8
{[%clk 0:02:21.5]} 17. d3 {[%clk 0:02:04.8]} 17... Ne6 {[%clk 0:02:19.5]} 18. g3
{[%clk 0:01:57.1]} 18... Qc6 {[%clk 0:02:10.7]} 19. h4 {[%clk 0:01:50.6]} 19...
Nd7 {[%clk 0:02:09.1]} 20. Bh3 {[%clk 0:01:41.7]} 20... Nb6 {[%clk 0:02:05.2]}
21. Ne3 {[%clk 0:01:36.7]} 21... c4 {[%clk 0:01:46.1]} 22. Nd5 {[%clk
0:01:13.6]} 22... Bd8 {[%clk 0:01:31.8]} 23. Be3 {[%clk 0:01:12.7]} 23... Qb5
{[%clk 0:01:11.6]} 24. Bxb6 {[%clk 0:00:55.6]} 24... Bxb6 {[%clk 0:01:11.1]} 25.
dxc4 {[%clk 0:00:45.3]} 25... Qa6 {[%clk 0:01:04.1]} 26. Bxe6 {[%clk 0:00:43.3]}
26... bxc3 {[%clk 0:00:56.9]} 27. bxc3 {[%clk 0:00:32.9]} 27... Ba5 {[%clk
0:00:53.9]} 28. Ra1 {[%clk 0:00:20.5]} 28... Qb7 {[%clk 0:00:54.2]} 29. Bf5
{[%clk 0:00:14.4]} 29... Bd8 {[%clk 0:00:50]} 30. Qd3 {[%clk 0:00:13.6]} 30...
g6 {[%clk 0:00:50.1]} 31. Bh3 {[%clk 0:00:14.1]} 31... Qb2 {[%clk 0:00:38.9]}
32. Ra7 {[%clk 0:00:09.7]} 32... Bb6 {[%clk 0:00:27.7]} 33. Nxb6 {[%clk
0:00:08.3]} 33... Qb1+ {[%clk 0:00:28.6]} 34. Qxb1 {[%clk 0:00:07.7]} 1-0

[Event "*** Titled Tuesday Blitz"]
[Site "Chess.com"]
[Date "2020.10.27"]
[Round "9"]
[White "Quiet_Desperation"]
[Black "ARTHURMOTIVATOR"]
[Result "0-1"]
[WhiteElo "2038"]
[BlackElo "2371"]
[TimeControl "180+1"]
[EndTime "11:45:19 PDT"]
[Termination "ARTHURMOTIVATOR won by resignation"]

1. d4 {[%clk 0:03:00.9]} 1... Nf6 {[%clk 0:02:58.7]} 2. Nf3 {[%clk 0:02:59.7]}
2... g6 {[%clk 0:02:57.6]} 3. Nc3 {[%clk 0:02:55.2]} 3... d5 {[%clk 0:02:54.6]}
4. Bg5 {[%clk 0:02:53.3]} 4... Bg7 {[%clk 0:02:53.1]} 5. Qd2 {[%clk 0:02:49.3]}
5... c6 {[%clk 0:02:48.6]} 6. O-O-O {[%clk 0:02:48.5]} 6... b5 {[%clk
0:02:46.8]} 7. Bh6 {[%clk 0:02:34.3]} 7... O-O {[%clk 0:02:38.3]} 8. Bxg7 {[%clk
0:02:32.2]} 8... Kxg7 {[%clk 0:02:37.9]} 9. h4 {[%clk 0:02:31.4]} 9... h5 {[%clk
0:02:24]} 10. Ne5 {[%clk 0:02:29.7]} 10... a5 {[%clk 0:02:07.5]} 11. f3 {[%clk
0:02:24.6]} 11... a4 {[%clk 0:02:06.3]} 12. e3 {[%clk 0:02:21]} 12... b4 {[%clk
0:02:04.7]} 13. Ne2 {[%clk 0:02:20.9]} 13... b3 {[%clk 0:01:51]} 14. a3 {[%clk
0:02:17]} 14... bxc2 {[%clk 0:01:42.5]} 15. Qxc2 {[%clk 0:02:17.1]} 15... Bf5
{[%clk 0:01:36]} 16. Qc3 {[%clk 0:02:08.4]} 16... Qd6 {[%clk 0:01:11]} 17. Ng3
{[%clk 0:02:07.3]} 17... Be6 {[%clk 0:01:07.8]} 18. Bd3 {[%clk 0:02:01]} 18...
Nbd7 {[%clk 0:01:02]} 19. Bc2 {[%clk 0:01:58.2]} 19... Rfc8 {[%clk 0:00:52.3]}
20. Nxd7 {[%clk 0:01:40.5]} 20... Bxd7 {[%clk 0:00:45.2]} 21. f4 {[%clk
0:01:36.4]} 21... c5 {[%clk 0:00:42.6]} 22. Kb1 {[%clk 0:01:27.5]} 22... Rab8
{[%clk 0:00:34.4]} 23. f5 {[%clk 0:01:13.3]} 23... Qxg3 {[%clk 0:00:31.4]} 24.
fxg6 {[%clk 0:01:12.3]} 24... fxg6 {[%clk 0:00:29.5]} 25. Rhf1 {[%clk 0:01:12]}
25... c4 {[%clk 0:00:21.3]} 26. Rf3 {[%clk 0:01:00.9]} 26... Qd6 {[%clk
0:00:20]} 27. Rdf1 {[%clk 0:00:58.1]} 27... Rb3 {[%clk 0:00:19.2]} 28. Bxb3
{[%clk 0:00:57.7]} 28... cxb3 {[%clk 0:00:18.8]} 29. Qa5 {[%clk 0:00:52.4]}
29... Bf5+ {[%clk 0:00:16.5]} 30. Rxf5 {[%clk 0:00:48.5]} 30... gxf5 {[%clk
0:00:15.9]} 31. Qxa4 {[%clk 0:00:49.4]} 31... Ne4 {[%clk 0:00:11.8]} 32. Rd1
{[%clk 0:00:43.7]} 32... Qb6 {[%clk 0:00:11.4]} 33. Qd7 {[%clk 0:00:41.9]} 33...
Rc7 {[%clk 0:00:09.6]} 34. Qxf5 {[%clk 0:00:38.4]} 34... Qc6 {[%clk 0:00:09.8]}
35. Qe5+ {[%clk 0:00:33.6]} 35... Nf6 {[%clk 0:00:09.1]} 36. Qg3+ {[%clk
0:00:28.4]} 36... Kf7 {[%clk 0:00:08.4]} 37. Qf2 {[%clk 0:00:25.2]} 37... Qc2+
{[%clk 0:00:08.3]} 0-1

[Event "*** Titled Tuesday Blitz"]
[Site "Chess.com"]
[Date "2020.10.27"]
[Round "9"]
[White "chessmachine14"]
[Black "pfalcon1949"]
[Result "1-0"]
[WhiteElo "2342"]
[BlackElo "2025"]
[TimeControl "180+1"]
[EndTime "11:45:20 PDT"]
[Termination "chessmachine14 won by resignation"]

1. e4 {[%clk 0:03:00.9]} 1... c6 {[%clk 0:02:59.4]} 2. d4 {[%clk 0:03:00.2]}
2... d5 {[%clk 0:02:59.6]} 3. e5 {[%clk 0:03:00.8]} 3... Bf5 {[%clk 0:02:59.5]}
4. Nf3 {[%clk 0:03:01.3]} 4... e6 {[%clk 0:02:54.1]} 5. Be2 {[%clk 0:03:01.4]}
5... Nd7 {[%clk 0:02:53.1]} 6. O-O {[%clk 0:03:01.9]} 6... c5 {[%clk 0:02:53.8]}
7. c3 {[%clk 0:03:00.9]} 7... h6 {[%clk 0:02:54.2]} 8. Na3 {[%clk 0:02:59.9]}
8... Qb6 {[%clk 0:02:53]} 9. Nc2 {[%clk 0:02:59.5]} 9... Bxc2 {[%clk 0:02:48.8]}
10. Qxc2 {[%clk 0:02:59]} 10... Rc8 {[%clk 0:02:49.3]} 11. Qa4 {[%clk 0:02:55]}
11... Ne7 {[%clk 0:02:31.5]} 12. Be3 {[%clk 0:02:37.6]} 12... Nc6 {[%clk
0:02:30.1]} 13. Rab1 {[%clk 0:02:26]} 13... Be7 {[%clk 0:02:19.3]} 14. Rfd1
{[%clk 0:02:24.9]} 14... O-O {[%clk 0:02:18]} 15. c4 {[%clk 0:02:24.8]} 15...
dxc4 {[%clk 0:01:51.1]} 16. Bxc4 {[%clk 0:02:15.3]} 16... Rfd8 {[%clk
0:01:46.6]} 17. b4 {[%clk 0:01:53.9]} 17... cxd4 {[%clk 0:01:32.4]} 18. Nxd4
{[%clk 0:01:51.2]} 18... Qc7 {[%clk 0:01:23.6]} 19. Nb5 {[%clk 0:01:39]} 19...
Qxe5 {[%clk 0:01:11.6]} 20. g3 {[%clk 0:01:13.7]} 20... a6 {[%clk 0:01:05.9]}
21. Nd4 {[%clk 0:01:09.4]} 21... b5 {[%clk 0:00:43]} 22. Qxa6 {[%clk 0:00:58.3]}
22... Nxb4 {[%clk 0:00:19.7]} 23. Rxb4 {[%clk 0:00:57.8]} 23... bxc4 {[%clk
0:00:19.4]} 24. Rxc4 {[%clk 0:00:42.6]} 24... Rxc4 {[%clk 0:00:17]} 25. Qxc4
{[%clk 0:00:42.2]} 25... Nf8 {[%clk 0:00:17]} 26. Rb1 {[%clk 0:00:38]} 26... Qa5
{[%clk 0:00:16.7]} 27. Nc6 {[%clk 0:00:35.8]} 27... Qc7 {[%clk 0:00:14.2]} 28.
Bb6 {[%clk 0:00:34.2]} 28... Qd7 {[%clk 0:00:07.8]} 29. Nxe7+ {[%clk 0:00:32.6]}
29... Qxe7 {[%clk 0:00:07.8]} 30. Bxd8 {[%clk 0:00:33.5]} 30... Qxd8 {[%clk
0:00:08.3]} 31. a4 {[%clk 0:00:34]} 31... Qf6 {[%clk 0:00:08.5]} 32. a5 {[%clk
0:00:33.2]} 32... Qf5 {[%clk 0:00:07.7]} 33. Qb5 {[%clk 0:00:33.4]} 33... Qf3
{[%clk 0:00:04.2]} 34. a6 {[%clk 0:00:33.4]} 34... Ng6 {[%clk 0:00:05.1]} 35.
Qb7 {[%clk 0:00:27.5]} 35... Nf4 {[%clk 0:00:05.6]} 36. Qxf3 {[%clk 0:00:26.6]}
1-0

[Event "*** Titled Tuesday Blitz"]
[Site "Chess.com"]
[Date "2020.10.27"]
[Round "9"]
[White "pavelalexandru07"]
[Black "zurzan"]
[Result "1-0"]
[WhiteElo "2347"]
[BlackElo "2053"]
[TimeControl "180+1"]
[EndTime "11:45:21 PDT"]
[Termination "pavelalexandru07 won by checkmate"]

1. e4 {[%clk 0:02:50.6]} 1... Nf6 {[%clk 0:02:59.1]} 2. e5 {[%clk 0:02:50.3]}
2... Nd5 {[%clk 0:02:59.3]} 3. d4 {[%clk 0:02:50.8]} 3... d6 {[%clk 0:02:59.4]}
4. Nf3 {[%clk 0:02:51.4]} 4... g6 {[%clk 0:02:58.8]} 5. Be2 {[%clk 0:02:51.7]}
5... Bg7 {[%clk 0:02:58.7]} 6. O-O {[%clk 0:02:52.2]} 6... O-O {[%clk
0:02:59.3]} 7. a3 {[%clk 0:02:50.8]} 7... Bg4 {[%clk 0:02:52.1]} 8. h3 {[%clk
0:02:50.8]} 8... Bxf3 {[%clk 0:02:51.9]} 9. Bxf3 {[%clk 0:02:51.2]} 9... dxe5
{[%clk 0:02:51.6]} 10. dxe5 {[%clk 0:02:51.4]} 10... c6 {[%clk 0:02:51.5]} 11.
Re1 {[%clk 0:02:48.9]} 11... e6 {[%clk 0:02:50.3]} 12. b3 {[%clk 0:02:25]} 12...
Nd7 {[%clk 0:02:48.7]} 13. Bb2 {[%clk 0:02:24.7]} 13... Qc7 {[%clk 0:02:34.8]}
14. c4 {[%clk 0:02:16.6]} 14... Ne7 {[%clk 0:02:26.4]} 15. Qe2 {[%clk
0:02:09.5]} 15... Rad8 {[%clk 0:02:24.1]} 16. Nd2 {[%clk 0:01:55.1]} 16... Nf5
{[%clk 0:02:16.3]} 17. b4 {[%clk 0:01:42.3]} 17... Nb6 {[%clk 0:02:13.7]} 18.
Rad1 {[%clk 0:01:29.1]} 18... Na4 {[%clk 0:02:12.9]} 19. Ba1 {[%clk 0:01:28.5]}
19... c5 {[%clk 0:02:07.8]} 20. b5 {[%clk 0:01:19.7]} 20... Nd4 {[%clk 0:02:01]}
21. Qe4 {[%clk 0:01:12.7]} 21... b6 {[%clk 0:01:45.2]} 22. Rc1 {[%clk
0:00:59.3]} 22... Nxf3+ {[%clk 0:01:26.5]} 23. Nxf3 {[%clk 0:00:58.9]} 23... Bh6
{[%clk 0:00:50]} 24. Rcd1 {[%clk 0:00:50.2]} 24... Rxd1 {[%clk 0:00:48.6]} 25.
Rxd1 {[%clk 0:00:50.4]} 25... Rd8 {[%clk 0:00:49.4]} 26. Qc2 {[%clk 0:00:39.3]}
26... Rxd1+ {[%clk 0:00:48.7]} 27. Qxd1 {[%clk 0:00:37.9]} 27... a6 {[%clk
0:00:28.7]} 28. Qxa4 {[%clk 0:00:37.3]} 28... axb5 {[%clk 0:00:28.7]} 29. cxb5
{[%clk 0:00:34.5]} 29... c4 {[%clk 0:00:28]} 30. Qc2 {[%clk 0:00:34.3]} 30...
Bf4 {[%clk 0:00:24.9]} 31. a4 {[%clk 0:00:32.1]} 31... f6 {[%clk 0:00:23.4]} 32.
exf6 {[%clk 0:00:29.9]} 32... e5 {[%clk 0:00:23.8]} 33. g3 {[%clk 0:00:29.7]}
33... Qb7 {[%clk 0:00:14.8]} 34. Qxc4+ {[%clk 0:00:27]} 34... Kf8 {[%clk
0:00:13.2]} 35. gxf4 {[%clk 0:00:20.2]} 35... Qxf3 {[%clk 0:00:12.3]} 36. Qc8+
{[%clk 0:00:20.4]} 36... Kf7 {[%clk 0:00:11.7]} 37. Qd7+ {[%clk 0:00:20.7]}
37... Kxf6 {[%clk 0:00:11.8]} 38. Bxe5# {[%clk 0:00:21.1]} 1-0

[Event "*** Titled Tuesday Blitz"]
[Site "Chess.com"]
[Date "2020.10.27"]
[Round "9"]
[White "Arseniy_Nesterov"]
[Black "amintabatabaei"]
[Result "0-1"]
[WhiteElo "2802"]
[BlackElo "2897"]
[TimeControl "180+1"]
[EndTime "11:45:23 PDT"]
[Termination "amintabatabaei won by resignation"]

1. d4 {[%clk 0:03:00.9]} 1... b6 {[%clk 0:02:57.9]} 2. c4 {[%clk 0:03:00.9]}
2... Bb7 {[%clk 0:02:58.2]} 3. Nc3 {[%clk 0:03:00.6]} 3... e6 {[%clk 0:02:58.2]}
4. e4 {[%clk 0:02:57]} 4... Bb4 {[%clk 0:02:57.3]} 5. Bd3 {[%clk 0:02:56.3]}
5... Nc6 {[%clk 0:02:57.5]} 6. Ne2 {[%clk 0:02:53.9]} 6... e5 {[%clk 0:02:50.5]}
7. d5 {[%clk 0:02:51.6]} 7... Nd4 {[%clk 0:02:50.6]} 8. O-O {[%clk 0:02:49.8]}
8... Nxe2+ {[%clk 0:02:49.8]} 9. Nxe2 {[%clk 0:02:48.8]} 9... Bc5 {[%clk
0:02:49.1]} 10. b3 {[%clk 0:02:37.9]} 10... d6 {[%clk 0:02:47.9]} 11. a3 {[%clk
0:02:31.4]} 11... a5 {[%clk 0:02:47.9]} 12. Bb2 {[%clk 0:02:26.6]} 12... Ne7
{[%clk 0:02:41.7]} 13. Qd2 {[%clk 0:02:12.8]} 13... b5 {[%clk 0:02:41.6]} 14.
cxb5 {[%clk 0:02:08.6]} 14... O-O {[%clk 0:02:41]} 15. Nc3 {[%clk 0:02:01.7]}
15... f5 {[%clk 0:02:31.8]} 16. Na4 {[%clk 0:01:51.3]} 16... Ba7 {[%clk
0:02:31.7]} 17. Bc3 {[%clk 0:01:41.9]} 17... fxe4 {[%clk 0:02:14.6]} 18. Bxe4
{[%clk 0:01:41.9]} 18... Rf4 {[%clk 0:02:15.4]} 19. Rae1 {[%clk 0:01:38]} 19...
Qd7 {[%clk 0:02:10.5]} 20. Qd3 {[%clk 0:01:27.1]} 20... h6 {[%clk 0:01:33.8]}
21. Bd2 {[%clk 0:01:22.9]} 21... Rxe4 {[%clk 0:01:31]} 22. Rxe4 {[%clk
0:01:17.5]} 22... Bxd5 {[%clk 0:01:29]} 23. Rh4 {[%clk 0:00:58.4]} 23... Qe6
{[%clk 0:01:23.3]} 24. Bxa5 {[%clk 0:00:49.1]} 24... Ng6 {[%clk 0:01:16]} 25.
Rg4 {[%clk 0:00:35.6]} 25... Nf4 {[%clk 0:01:08.4]} 26. Rxf4 {[%clk 0:00:33]}
26... exf4 {[%clk 0:01:09.3]} 27. Bxc7 {[%clk 0:00:31.9]} 27... f3 {[%clk
0:00:47.1]} 28. Nc3 {[%clk 0:00:17.2]} 28... Bb7 {[%clk 0:00:41.9]} 29. Qxd6
{[%clk 0:00:01.4]} 29... Qf5 {[%clk 0:00:21]} 30. Qg3 {[%clk 0:00:02]} 30...
fxg2 {[%clk 0:00:20.6]} 31. Re1 {[%clk 0:00:02.6]} 31... Rf8 {[%clk 0:00:21]}
32. Be5 {[%clk 0:00:03.1]} 32... Bxf2+ {[%clk 0:00:20.6]} 0-1